[Event "22nd ETCC Women 2019"]
[Site "Batumi"]
[Date "2019.10.25"]
[Round "2.12"]
[White "Movileanu, Daniela"]
[Black "Zhukova, Natalia"]
[Result "1-0"]
[ECO "C91"]
[WhiteElo "2173"]
[BlackElo "2333"]
[Annotator "NA"]
[PlyCount "78"]
[EventDate "2019.10.24"]
[EventType "team-tourn"]
[EventCountry "GEO"]
[SourceTitle "playchess.com"]
[Source "ChessBase"]
[SourceQuality "1"]
[WhiteTeam "Italy"]
[BlackTeam "Ukraine"]
[WhiteTeamCountry "ITA"]
[BlackTeamCountry "UKR"]
[TimeControl "40/5400+30:1800+30"]

1. e4 {[%emt 0:00:00]} e5 {[%emt 0:00:00]} 2. Nf3 {[%emt 0:00:00]} Nc6 {[%emt 0:00:00]} 3. Bb5 {[%emt 0:00:05]} a6 {[%emt 0:00:13]} 4. Ba4 {[%emt 0:00:10]} Nf6 {[%emt 0:00:33]} 5. O-O {[%emt 0:00:27]} Be7 {[%emt 0:00:25]} 6. Re1 {[%emt 0:03:51]} b5 {[%emt 0:00:17]} 7. Bb3 {[%emt 0:00:05]} d6 {[%emt 0:00:18]} 8. c3 {[%emt 0:00:11]} O-O {[%emt 0:00:23]} 9. d4 {[%emt 0:00:23]} Bg4 {[%emt 0:09:07]} 10. d5 {[%emt 0:01:07]} Na5 {[%emt 0:01:21]} 11. Bc2 {[%emt 0:00:35]} c6 {[%emt 0:06:50]} 12. h3 {[%emt 0:01:39]} Bc8 {[%emt 0:18:06]} 13. dxc6 {[%emt 0:02:27]} Qc7 {[%emt 0:07:13]} 14. Nbd2 {[%emt 0:03:09]} Qxc6 {[%emt 0:01:37]} 15. Nf1 {[%emt 0:01:33]} Nb7 {[%emt 0:10:02]} 16. a4 {[%emt 0:05:28]} Nc5 {[%emt 0:01:01]} 17. axb5 {[%emt 0:02:23]} axb5 {[%emt 0:00:07]} 18. Rxa8 {[%emt 0:00:20]} Qxa8 {[%emt 0:00:02]} 19. Ng3 {[%emt 0:00:50]} Rd8 {[%emt 0:12:57]} 20. Qe2 {[%emt 0:03:35]} Qc6 {[%emt 0:03:37]} 21. Nh4 {[%emt 0:11:07]} g6 {[%emt 0:06:40]} 22. Bg5 {[%emt 0:09:39]} Ne6 {[%emt 0:01:30]} 23. Bh6 {[%emt 0:04:30]} b4 {[%emt 0:11:36]} 24. Qf3 {[%emt 0:27:54]} Ne8 {[%emt 0:03:50]} 25. Nhf5 {[%emt 0:01:01]} gxf5 {[%emt 0:00:53]} 26. Nxf5 {[%emt 0:00:04]} Bf6 {[%emt 0:00:20]} 27. Qh5 {[%emt 0:05:38]} Nf4 {[%emt 0:03:02]} 28. Bxf4 {[%emt 0:01:45]} Bxf5 {[%emt 0:00:04]} 29. Qxf5 {[%emt 0:01:55]} exf4 {[%emt 0:00:10]} 30. e5 {[%emt 0:03:50]} Bg7 {[%emt 0:02:08]} 31. Qxh7+ {[%emt 0:03:04]} Kf8 {[%emt 0:00:01]} 32. e6 {[%emt 0:03:02]} fxe6 {[%emt 0:00:02]} 33. Rxe6 {[%emt 0:00:14]} Qd5 {[%emt 0:00:25]} 34. Re4 {[%emt 0:01:21]} b3 {[%emt 0:01:35]} 35. Rxf4+ {[%emt 0:01:27]} Nf6 {[%emt 0:00:01]} 36. Bd3 {[%emt 0:01:01]} Ra8 {[%emt 0:00:28]} 37. Qg6 {[%emt 0:01:53]} Ra1+ {[%emt 0:00:51]} 38. Kh2 {[%emt 0:00:05]} Qe5 {[%emt 0:00:26]} 39. g3 {[%emt 0:00:23]} Qd5 1-0

[Event "22nd ETCC Women 2019"]
[Site "Batumi"]
[Date "2019.10.25"]
[Round "2.13"]
[White "Mammadzada, Gunay"]
[Black "Vega Gutierrez, Sabrina"]
[Result "1/2-1/2"]
[ECO "D20"]
[WhiteElo "2427"]
[BlackElo "2395"]
[Annotator "NA"]
[PlyCount "96"]
[EventDate "2019.10.24"]
[EventType "team-tourn"]
[EventCountry "GEO"]
[SourceTitle "playchess.com"]
[Source "ChessBase"]
[SourceQuality "1"]
[WhiteTeam "Azerbaijan"]
[BlackTeam "Spain"]
[WhiteTeamCountry "AZE"]
[BlackTeamCountry "ESP"]
[TimeControl "40/5400+30:1800+30"]

1. d4 {[%emt 0:00:00]} d5 {[%emt 0:00:00]} 2. c4 {[%emt 0:00:00]} dxc4 {[%emt 0:04:55]} 3. e4 {[%emt 0:00:00]} Nc6 {[%emt 0:03:46]} 4. Nf3 {[%emt 0:01:39]} Bg4 {[%emt 0:02:49]} 5. d5 {[%emt 0:01:31]} Ne5 {[%emt 0:02:42]} 6. Bf4 {[%emt 0:03:07]} Ng6 {[%emt 0:01:30]} 7. Be3 {[%emt 0:00:42]} Nf6 {[%emt 0:05:24]} 8. Nc3 {[%emt 0:04:13]} e5 {[%emt 0:06:32]} 9. Bxc4 {[%emt 0:01:31]} Bd6 {[%emt 0:00:15]} 10. Be2 {[%emt 0:03:38]} O-O {[%emt 0:00:38]} 11. Nd2 {[%emt 0:02:21]} Bxe2 {[%emt 0:06:31]} 12. Qxe2 {[%emt 0:05:33]} Nd7 {[%emt 0:06:06]} 13. g3 {[%emt 0:12:08]} a6 {[%emt 0:06:20]} 14. O-O {[%emt 0:07:55]} Ne7 {[%emt 0:08:05]} 15. Nc4 {[%emt 0:04:25]} b5 {[%emt 0:04:51]} 16. Nxd6 {[%emt 0:09:40]} cxd6 {[%emt 0:00:09]} 17. b4 {[%emt 0:05:28]} f5 {[%emt 0:08:33]} 18. a4 {[%emt 0:09:22]} Nf6 {[%emt 0:08:49]} 19. axb5 {[%emt 0:03:57]} axb5 {[%emt 0:00:26]} 20. exf5 {[%emt 0:05:44]} Nfxd5 {[%emt 0:03:38]} 21. Nxd5 {[%emt 0:01:10]} Nxd5 {[%emt 0:00:03]} 22. Qxb5 {[%emt 0:00:46]} Ne7 {[%emt 0:00:22]} 23. Bg5 {[%emt 0:01:52]} Qe8 {[%emt 0:04:27]} 24. Qxe8 {[%emt 0:03:25]} Raxe8 {[%emt 0:00:27]} 25. Bxe7 {[%emt 0:03:14]} Rxe7 {[%emt 0:00:02]} 26. Rfd1 {[%emt 0:02:20]} Rxf5 {[%emt 0:01:33]} 27. Rxd6 {[%emt 0:01:11]} e4 {[%emt 0:00:32]} 28. Ra5 {[%emt 0:01:49]} Rf3 {[%emt 0:04:01]} 29. b5 {[%emt 0:01:02]} Rb3 {[%emt 0:02:51]} 30. Ra8+ {[%emt 0:02:25]} Kf7 {[%emt 0:00:04]} 31. Rb8 {[%emt 0:00:23]} Rb1+ {[%emt 0:03:21]} 32. Kg2 {[%emt 0:00:09]} Rb2 {[%emt 0:00:04]} 33. Kf1 {[%emt 0:01:31]} e3 {[%emt 0:00:28]} 34. fxe3 {[%emt 0:00:38]} Rxe3 {[%emt 0:00:53]} 35. b6 {[%emt 0:02:02]} Rf3+ {[%emt 0:05:51]} 36. Ke1 {[%emt 0:00:06]} Rf6 {[%emt 0:00:27]} 37. Rxf6+ {[%emt 0:01:00]} Kxf6 {[%emt 0:00:12]} 38. b7 {[%emt 0:00:31]} Kg5 {[%emt 0:00:44]} 39. h3 {[%emt 0:00:23]} h5 {[%emt 0:00:32]} 40. Kd1 {[%emt 0:00:00]} Kg6 {[%emt 0:00:00]} 41. Kc1 {[%emt 0:00:52]} Rb6 {[%emt 0:01:26]} 42. Kc2 {[%emt 0:03:50]} Rb5 {[%emt 0:01:35]} 43. Kc3 {[%emt 0:04:14]} Rb1 {[%emt 0:00:19]} 44. Kc4 {[%emt 0:07:51]} Rc1+ {[%emt 0:02:48]} 45. Kd5 {[%emt 0:02:42]} Rd1+ {[%emt 0:00:18]} 46. Kc6 {[%emt 0:02:46]} Rc1+ {[%emt 0:00:06]} 47. Kd5 {[%emt 0:01:00]} Rd1+ {[%emt 0:00:10]} 48. Kc6 {[%emt 0:01:17]} Rc1+ {[%emt 0:00:05]} 1/2-1/2

[Event "22nd ETCC Women 2019"]
[Site "Batumi"]
[Date "2019.10.25"]
[Round "2.13"]
[White "Machlik, Monika"]
[Black "Reizniece-Ozola, Dana"]
[Result "0-1"]
[ECO "A57"]
[WhiteElo "2159"]
[BlackElo "2297"]
[Annotator "NA"]
[PlyCount "98"]
[EventDate "2019.10.24"]
[EventType "team-tourn"]
[EventCountry "GEO"]
[SourceTitle "playchess.com"]
[Source "ChessBase"]
[SourceQuality "1"]
[WhiteTeam "Norway"]
[BlackTeam "Latvia"]
[WhiteTeamCountry "NOR"]
[BlackTeamCountry "LAT"]
[TimeControl "40/5400+30:1800+30"]

1. d4 {[%emt 0:00:00]} Nf6 {[%emt 0:00:00]} 2. c4 {[%emt 0:00:00]} c5 {[%emt 0:00:00]} 3. d5 {[%emt 0:00:13]} b5 {[%emt 0:00:12]} 4. Qc2 {[%emt 0:02:30]} bxc4 {[%emt 0:00:19]} 5. e4 {[%emt 0:00:28]} e6 {[%emt 0:00:29]} 6. Bxc4 {[%emt 0:01:34]} exd5 {[%emt 0:00:08]} 7. exd5 {[%emt 0:00:04]} d6 {[%emt 0:00:12]} 8. Nc3 {[%emt 0:00:36]} Be7 {[%emt 0:00:23]} 9. Nge2 {[%emt 0:00:21]} O-O {[%emt 0:02:03]} 10. O-O {[%emt 0:00:06]} Nbd7 {[%emt 0:00:56]} 11. Ng3 {[%emt 0:15:20]} Nb6 {[%emt 0:03:25]} 12. b3 {[%emt 0:02:31]} Nxc4 {[%emt 0:06:50]} 13. bxc4 {[%emt 0:00:03]} Ng4 {[%emt 0:09:44]} 14. Bf4 {[%emt 0:12:01]} f5 {[%emt 0:18:55]} 15. Rfe1 {[%emt 0:18:15]} g5 {[%emt 0:15:16]} 16. Bd2 {[%emt 0:02:52]} f4 {[%emt 0:06:03]} 17. Nge4 {[%emt 0:07:36]} f3 {[%emt 0:01:09]} 18. h3 {[%emt 0:12:18]} Ne5 {[%emt 0:01:22]} 19. Nxc5 {[%emt 0:01:36]} fxg2 {[%emt 0:01:43]} 20. Rxe5 {[%emt 0:00:52]} dxe5 {[%emt 0:03:13]} 21. N5e4 {[%emt 0:00:38]} Bf5 {[%emt 0:11:20]} 22. Qd1 {[%emt 0:05:58]} Qc8 {[%emt 0:01:37]} 23. Qh5 {[%emt 0:06:46]} Qxc4 {[%emt 0:02:03]} 24. Bxg5 {[%emt 0:06:45]} Bxe4 {[%emt 0:02:44]} 25. Nxe4 {[%emt 0:01:03]} Qxe4 {[%emt 0:02:39]} 26. Bxe7 {[%emt 0:00:10]} Rf7 {[%emt 0:03:58]} 27. d6 {[%emt 0:00:31]} Qd4 {[%emt 0:04:02]} 28. Qg4+ {[%emt 0:00:49]} Qxg4 {[%emt 0:01:12]} 29. hxg4 {[%emt 0:00:01]} Rg7 {[%emt 0:00:10]} 30. Rc1 {[%emt 0:02:06]} Kf7 {[%emt 0:00:18]} 31. g5 {[%emt 0:00:43]} Ke6 {[%emt 0:00:40]} 32. Kxg2 {[%emt 0:00:30]} h6 {[%emt 0:01:44]} 33. Rc7 {[%emt 0:00:35]} hxg5 {[%emt 0:00:13]} 34. Kg3 {[%emt 0:00:34]} Kf5 {[%emt 0:00:54]} 35. Rb7 {[%emt 0:00:32]} g4 {[%emt 0:00:15]} 36. Rc7 {[%emt 0:00:23]} Rh7 {[%emt 0:00:16]} 37. Kg2 {[%emt 0:00:34]} a5 {[%emt 0:00:40]} 38. Rc5 {[%emt 0:00:32]} a4 {[%emt 0:00:19]} 39. Rc3 {[%emt 0:00:24]} Ke6 {[%emt 0:00:32]} 40. Rc4 {[%emt 0:00:00]} Kf5 {[%emt 0:00:00]} 41. Kg3 {[%emt 0:11:23]} Rh3+ {[%emt 0:04:08]} 42. Kg2 {[%emt 0:00:08]} Rd3 {[%emt 0:02:29]} 43. Kf1 {[%emt 0:07:13]} a3 {[%emt 0:03:14]} 44. Ke2 {[%emt 0:02:09]} Rd5 {[%emt 0:00:26]} 45. Ke3 {[%emt 0:04:10]} Rh8 {[%emt 0:01:14]} 46. Ra4 {[%emt 0:02:41]} Rh1 {[%emt 0:04:59]} 47. Ke2 {[%emt 0:01:26]} Rdd1 {[%emt 0:00:29]} 48. f3 {[%emt 0:01:31]} g3 {[%emt 0:02:19]} 49. f4 {[%emt 0:00:10]} g2 {[%emt 0:01:42]} 0-1

[Event "22nd ETCC Women 2019"]
[Site "Batumi"]
[Date "2019.10.25"]
[Round "2.14"]
[White "Garcia Martin, Marta"]
[Black "Balajayeva, Khanim"]
[Result "1-0"]
[ECO "C50"]
[WhiteElo "2305"]
[BlackElo "2368"]
[Annotator "RC"]
[PlyCount "195"]
[EventDate "2019.10.24"]
[EventType "team-tourn"]
[EventCountry "GEO"]
[SourceTitle "playchess.com"]
[Source "ChessBase"]
[SourceQuality "1"]
[WhiteTeam "Spain"]
[BlackTeam "Azerbaijan"]
[WhiteTeamCountry "ESP"]
[BlackTeamCountry "AZE"]
[TimeControl "40/5400+30:1800+30"]

1. e4 {[%emt 0:00:00]} e5 {[%emt 0:00:00]} 2. Nf3 {[%emt 0:00:00]} Nc6 {[%emt 0:00:00]} 3. Bc4 {[%emt 0:00:00]} Nf6 {[%emt 0:00:00]} 4. d3 {[%emt 0:00:00]} Bc5 {[%emt 0:00:00]} 5. O-O {[%emt 0:00:18]} d6 {[%emt 0:00:12]} 6. c3 {[%emt 0:00:39]} a6 {[%emt 0:00:18]} 7. Bg5 {[%emt 0:05:49]} h6 {[%emt 0:01:44]} 8. Bh4 {[%emt 0:00:06]} g5 {[%emt 0:05:02]} 9. Bg3 {[%emt 0:00:08]} Ba7 {[%emt 0:01:07]} 10. Bb3 {[%emt 0:01:10]} Bg4 {[%emt 0:02:41]} 11. Nbd2 {[%emt 0:08:33]} Qd7 {[%emt 0:01:44]} 12. Nc4 {[%emt 0:04:54]} O-O-O {[%emt 0:25:17]} 13. Ne3 {[%emt 0:04:44]} h5 {[%emt 0:01:51]} 14. h3 {[%emt 0:36:18]} h4 {[%emt 0:12:48]} 15. Nxg4 {[%emt 0:02:28]} Nxg4 {[%emt 0:00:14]} 16. Bh2 {[%emt 0:00:20]} Nf6 {[%emt 0:06:16]} 17. Nxg5 {[%emt 0:12:52]} Rdg8 {[%emt 0:08:17]} 18. Qf3 {[%emt 0:00:09]} Rh6 {[%emt 0:01:00]} 19. Nxf7 {[%emt 0:01:52]} Rhg6 {[%emt 0:00:04]} 20. Kh1 {[%emt 0:16:41]} R8g7 {[%emt 0:07:55]} 21. Qf5 {[%emt 0:02:48]} Ne8 {[%emt 0:03:53]} 22. f4 {[%emt 0:00:36]} exf4 {[%emt 0:01:33]} 23. Rxf4 {[%emt 0:00:30]} Qxf5 {[%emt 0:02:22]} 24. Rxf5 {[%emt 0:00:28]} Kd7 {[%emt 0:04:52]} 25. d4 {[%emt 0:00:28]} Rxg2 {[%emt 0:00:23]} 26. Nh6 {[%emt 0:00:27]} Rxb2 {[%emt 0:00:31]} 27. Ng4 {[%emt 0:00:08]} Rd2 {[%emt 0:05:03]} 28. Raf1 {[%emt 0:01:00]} Re7 {[%emt 0:05:05]} 29. e5 {[%emt 0:00:25]} dxe5 {[%emt 0:00:34]} 30. Nxe5+ {[%emt 0:00:30]} Nxe5 {[%emt 0:00:04]} 31. Bxe5 {[%emt 0:00:26]} Nd6 {[%emt 0:00:53]} 32. R5f4 {[%emt 0:00:22]} Rd3 {[%emt 0:01:16]} 33. R1f3 {[%emt 0:00:39]} Rxf3 {[%emt 0:00:33]} 34. Rxf3 {[%emt 0:00:03]} c5 {[%emt 0:00:56]} 35. Rf4 {[%emt 0:00:40]} Nb5 {[%emt 0:01:25]} 36. Ba4 {[%emt 0:00:17]} Ke6 {[%emt 0:00:22]} 37. Bb3+ {[%emt 0:00:46]} Kd7 {[%emt 0:00:07]} 38. Ba4 {[%emt 0:00:03]} Ke6 {[%emt 0:00:02]} 39. Bf6 {[%emt 0:01:10]} Rc7 {[%emt 0:00:46]} 40. d5+ {[%emt 0:00:00]} Kd6 {[%emt 0:00:00]} 41. c4 Na3 {[%emt 0:08:44]} 42. Bxh4 {[%emt 0:19:00]} Rg7 {[%emt 0:02:30]} 43. Rf6+ {[%emt 0:01:05]} Ke5 {[%emt 0:02:11]} 44. Re6+ {[%emt 0:06:27]} Kf5 {[%emt 0:04:18]} 45. Bd1 {[%emt 0:00:27]} Rh7 {[%emt 0:01:59]} 46. Bg4+ {[%emt 0:03:02]} Kf4 {[%emt 0:00:14]} 47. Be7 {[%emt 0:01:56]} Nxc4 {[%emt 0:00:46]} 48. d6 {[%emt 0:00:05]} Ne5 {[%emt 0:01:17]} 49. Bg5+ {[%emt 0:01:24]} Kxg5 {[%emt 0:00:43]} 50. Rxe5+ {[%emt 0:00:04]} Kf4 {[%emt 0:02:32]} 51. Re8 {[%emt 0:02:28]} Bb6 {[%emt 0:02:04]} 52. d7 {[%emt 0:00:15]} c4 {[%emt 0:00:27]} 53. Rc8 {[%emt 0:00:37]} c3 {[%emt 0:00:22]} 54. Rxc3 {[%emt 0:00:15]} Rh6 {[%emt 0:03:52]} 55. Rf3+ {[%emt 0:00:56]} Ke5 {[%emt 0:00:50]} 56. Rb3 {[%emt 0:00:04]} Ba5 {[%emt 0:00:21]} 57. Rxb7 {[%emt 0:00:15]} Rd6 {[%emt 0:00:03]} 58. Rb2 {[%emt 0:00:30]} Bd8 {[%emt 0:02:14]} 59. Kg2 {[%emt 0:00:45]} Bh4 {[%emt 0:00:11]} 60. Rc2 {[%emt 0:00:59]} Kf4 {[%emt 0:00:17]} 61. Rc4+ {[%emt 0:00:30]} Ke3 {[%emt 0:00:12]} 62. Rc3+ {[%emt 0:00:13]} Kf4 {[%emt 0:00:14]} 63. Rc8 {[%emt 0:00:48]} Rd2+ {[%emt 0:00:17]} 64. Kf1 {[%emt 0:00:07]} Rf2+ {[%emt 0:00:34]} 65. Kg1 {[%emt 0:00:22]} Rd2 {[%emt 0:00:11]} 66. Rf8+ {[%emt 0:00:34]} Ke3 {[%emt 0:01:44]} 67. Rf3+ {[%emt 0:00:16]} Ke4 {[%emt 0:00:06]} 68. Ra3 {[%emt 0:00:19]} Rd6 {[%emt 0:00:26]} 69. Kf1 {[%emt 0:00:53]} Bg5 {[%emt 0:01:20]} 70. Ke2 {[%emt 0:00:55]} Rd2+ {[%emt 0:00:07]} 71. Ke1 {[%emt 0:00:04]} Rd6 {[%emt 0:00:02]} 72. Rb3 {[%emt 0:00:59]} Ke5 {[%emt 0:01:32]} 73. Rf3 {[%emt 0:00:34]} Ke4 {[%emt 0:00:27]} 74. Rf8 {[%emt 0:00:28]} Ke3 {[%emt 0:03:23]} 75. Re8+ {[%emt 0:00:13]} Kf4 {[%emt 0:00:10]} 76. Rg8 {[%emt 0:00:48]} Bh4+ {[%emt 0:01:27]} 77. Ke2 {[%emt 0:00:07]} Ke4 {[%emt 0:00:07]} 78. Re8+ {[%emt 0:00:51]} Kf4 {[%emt 0:00:04]} 79. Rf8+ {[%emt 0:00:26]} Ke4 {[%emt 0:00:03]} 80. Rf7 {[%emt 0:00:37]} Bg5 {[%emt 0:01:09]} 81. Rg7 {[%emt 0:00:31]} Bh4 {[%emt 0:01:20]} 82. Bf3+ {[%emt 0:00:28]} Ke5 {[%emt 0:00:03]} 83. Ke3 {[%emt 0:00:25]} Bf6 {[%emt 0:00:05]} 84. Rh7 {[%emt 0:00:34]} Bg5+ {[%emt 0:00:03]} 85. Kf2 {[%emt 0:00:28]} Rd2+ {[%emt 0:00:21]} 86. Be2 {[%emt 0:00:17]} Ke6 {[%emt 0:01:30]} 87. h4 {[%emt 0:00:27]} Be7 {[%emt 0:01:07]} 88. Ke3 {[%emt 0:00:08]} Rd6 {[%emt 0:00:54]} 89. Bg4+ {[%emt 0:00:27]} Kf6 {[%emt 0:00:07]} 90. Ke4 {[%emt 0:01:08]} Rd2 {[%emt 0:00:15]} 91. h5 {[%emt 0:00:39]} Rxa2 {[%emt 0:02:18]} 92. Kd5 {[%emt 0:00:26]} Rd2+ {[%emt 0:00:16]} 93. Kc6 {[%emt 0:00:07]} Bd8 {[%emt 0:00:17]} 94. Rh8 {[%emt 0:00:31]} Be7 {[%emt 0:00:16]} 95. h6 {[%emt 0:00:49]} Kg6 {[%emt 0:00:45]} 96. h7 {[%emt 0:00:27]} Bh4 {[%emt 0:00:21]} 97. Bf5+ {[%emt 0:00:25]} Kf7 {[%emt 0:01:14]} 98. Rf8+ {[%emt 0:00:13]} 1-0

[Event "22nd ETCC Women 2019"]
[Site "Batumi"]
[Date "2019.10.25"]
[Round "2.14"]
[White "Rogule, Laura"]
[Black "Machlik, Edit"]
[Result "1/2-1/2"]
[ECO "A22"]
[WhiteElo "2269"]
[BlackElo "2062"]
[Annotator "NA"]
[PlyCount "64"]
[EventDate "2019.10.24"]
[EventType "team-tourn"]
[EventCountry "GEO"]
[SourceTitle "playchess.com"]
[Source "ChessBase"]
[SourceQuality "1"]
[WhiteTeam "Latvia"]
[BlackTeam "Norway"]
[WhiteTeamCountry "LAT"]
[BlackTeamCountry "NOR"]
[TimeControl "40/5400+30:1800+30"]

1. c4 {[%emt 0:00:00]} e5 {[%emt 0:00:00]} 2. Nc3 {[%emt 0:00:00]} Nf6 {[%emt 0:00:00]} 3. g3 {[%emt 0:00:00]} d5 {[%emt 0:00:18]} 4. cxd5 {[%emt 0:00:00]} Nxd5 {[%emt 0:00:05]} 5. Bg2 {[%emt 0:00:07]} Nb6 {[%emt 0:00:15]} 6. Nf3 {[%emt 0:00:09]} Nc6 {[%emt 0:00:35]} 7. O-O {[%emt 0:00:23]} Be7 {[%emt 0:00:56]} 8. Rb1 {[%emt 0:02:14]} O-O {[%emt 0:01:30]} 9. b4 {[%emt 0:00:53]} a6 {[%emt 0:00:22]} 10. a3 {[%emt 0:00:59]} Re8 {[%emt 0:03:08]} 11. d3 {[%emt 0:01:12]} Bf8 {[%emt 0:11:51]} 12. Bb2 {[%emt 0:02:44]} f6 {[%emt 0:09:56]} 13. Nd2 {[%emt 0:12:23]} Nd4 {[%emt 0:02:50]} 14. e3 {[%emt 0:09:32]} Nb5 {[%emt 0:01:48]} 15. Nc4 {[%emt 0:06:45]} Nxc3 {[%emt 0:16:47]} 16. Bxc3 {[%emt 0:00:05]} Rb8 {[%emt 0:12:02]} 17. Nxb6 {[%emt 0:18:11]} cxb6 {[%emt 0:00:05]} 18. d4 exd4 {[%emt 0:08:01]} 19. Qxd4 {[%emt 0:07:45]} Be6 {[%emt 0:09:03]} 20. Qh4 {[%emt 0:13:17]} Qe7 {[%emt 0:04:18]} 21. Bd4 {[%emt 0:03:20]} b5 {[%emt 0:03:22]} 22. Rfc1 {[%emt 0:01:06]} Bc4 {[%emt 0:02:20]} 23. Bf1 {[%emt 0:04:49]} Bxf1 {[%emt 0:02:35]} 24. Kxf1 {[%emt 0:00:09]} Rbc8 {[%emt 0:01:07]} 25. Bc5 {[%emt 0:02:10]} Qe6 {[%emt 0:00:51]} 26. Bxf8 {[%emt 0:05:12]} Rxf8 {[%emt 0:00:05]} 27. Kg2 {[%emt 0:02:16]} Rc4 {[%emt 0:01:25]} 28. Rxc4 {[%emt 0:01:49]} bxc4 {[%emt 0:00:16]} 29. Qd4 {[%emt 0:00:33]} b5 {[%emt 0:01:03]} 30. e4 {[%emt 0:03:01]} f5 {[%emt 0:03:54]} 31. e5 {[%emt 0:02:41]} f4 {[%emt 0:00:30]} 32. f3 {[%emt 0:01:09]} Qf5 {[%emt 0:03:56]} 1/2-1/2

[Event "22nd ETCC Women 2019"]
[Site "Batumi"]
[Date "2019.10.25"]
[Round "2.15"]
[White "Fataliyeva, Ulviyya"]
[Black "Matnadze, Ana"]
[Result "0-1"]
[ECO "A13"]
[WhiteElo "2368"]
[BlackElo "2383"]
[Annotator "NA"]
[PlyCount "96"]
[EventDate "2019.10.24"]
[EventType "team-tourn"]
[EventCountry "GEO"]
[SourceTitle "playchess.com"]
[Source "ChessBase"]
[SourceQuality "1"]
[WhiteTeam "Azerbaijan"]
[BlackTeam "Spain"]
[WhiteTeamCountry "AZE"]
[BlackTeamCountry "ESP"]
[TimeControl "40/5400+30:1800+30"]

1. c4 {[%emt 0:00:00]} e6 {[%emt 0:01:01]} 2. Nf3 {[%emt 0:01:57]} Nf6 {[%emt 0:00:45]} 3. g3 {[%emt 0:00:24]} b6 {[%emt 0:01:59]} 4. Bg2 {[%emt 0:00:05]} Bb7 {[%emt 0:00:03]} 5. O-O {[%emt 0:00:32]} Be7 {[%emt 0:00:57]} 6. Nc3 {[%emt 0:03:42]} O-O {[%emt 0:00:13]} 7. b3 {[%emt 0:00:36]} c5 {[%emt 0:02:07]} 8. Bb2 {[%emt 0:00:31]} d5 {[%emt 0:00:56]} 9. cxd5 {[%emt 0:02:09]} exd5 {[%emt 0:00:11]} 10. d4 {[%emt 0:00:58]} Nbd7 {[%emt 0:01:31]} 11. Rc1 {[%emt 0:02:56]} Ne4 {[%emt 0:01:24]} 12. dxc5 {[%emt 0:06:11]} Nxc3 {[%emt 0:01:19]} 13. Bxc3 {[%emt 0:00:28]} bxc5 {[%emt 0:00:20]} 14. Ne1 {[%emt 0:06:02]} Nb6 {[%emt 0:02:11]} 15. a4 {[%emt 0:00:17]} Rb8 {[%emt 0:06:32]} 16. Nd3 {[%emt 0:14:05]} d4 {[%emt 0:06:49]} 17. Bxb7 {[%emt 0:00:36]} Rxb7 {[%emt 0:01:18]} 18. Bd2 {[%emt 0:08:00]} Nd7 {[%emt 0:16:32]} 19. Qc2 {[%emt 0:10:04]} Qb6 {[%emt 0:04:45]} 20. Rb1 {[%emt 0:02:21]} Rfb8 {[%emt 0:11:18]} 21. b4 {[%emt 0:07:49]} cxb4 {[%emt 0:15:10]} 22. Bxb4 {[%emt 0:00:13]} Bf8 {[%emt 0:01:12]} 23. Bxf8 {[%emt 0:03:00]} Qxb1 {[%emt 0:00:08]} 24. Rxb1 {[%emt 0:00:03]} Rxb1+ {[%emt 0:00:05]} 25. Kg2 {[%emt 0:00:05]} Nxf8 {[%emt 0:00:13]} 26. Qc5 {[%emt 0:01:57]} Ne6 {[%emt 0:09:16]} 27. Qxa7 {[%emt 0:00:26]} R1b7 {[%emt 0:00:15]} 28. Qa6 {[%emt 0:01:37]} h6 {[%emt 0:03:49]} 29. Ne5 {[%emt 0:02:51]} Rb6 {[%emt 0:01:44]} 30. Qc4 {[%emt 0:04:39]} Ra8 {[%emt 0:04:37]} 31. a5 {[%emt 0:01:41]} Rba6 {[%emt 0:01:06]} 32. Nc6 {[%emt 0:00:15]} g6 {[%emt 0:02:53]} 33. Ne7+ {[%emt 0:10:00]} Kg7 {[%emt 0:00:22]} 34. f4 {[%emt 0:00:42]} Rxa5 {[%emt 0:00:41]} 35. f5 {[%emt 0:00:08]} gxf5 {[%emt 0:01:12]} 36. Qc6 {[%emt 0:00:26]} Rd8 {[%emt 0:01:57]} 37. Qf3 {[%emt 0:02:58]} d3 {[%emt 0:00:40]} 38. exd3 {[%emt 0:00:16]} Ra2+ {[%emt 0:00:19]} 39. Kg1 {[%emt 0:00:39]} Ra1+ {[%emt 0:00:47]} 40. Kf2 {[%emt 0:00:00]} Ra2+ {[%emt 0:00:00]} 41. Kg1 {[%emt 0:08:09]} Rb8 {[%emt 0:09:31]} 42. Nxf5+ {[%emt 0:00:31]} Kf8 {[%emt 0:00:30]} 43. Qf1 {[%emt 0:02:51]} Rba8 {[%emt 0:03:34]} 44. Ne3 {[%emt 0:01:10]} Ra1 {[%emt 0:00:19]} 45. Nd1 {[%emt 0:00:05]} R8a2 {[%emt 0:00:42]} 46. Qe1 {[%emt 0:01:04]} Rb1 {[%emt 0:02:02]} 47. h4 {[%emt 0:01:21]} Nd4 {[%emt 0:01:17]} 48. Qf1 {[%emt 0:00:10]} Rd2 {[%emt 0:00:18]} 0-1

[Event "22nd ETCC Women 2019"]
[Site "Batumi"]
[Date "2019.10.25"]
[Round "2.15"]
[White "Johnsen, Sylvia"]
[Black "Berzina, Ilze"]
[Result "0-1"]
[ECO "B13"]
[WhiteElo "1898"]
[BlackElo "2216"]
[Annotator "NA"]
[PlyCount "66"]
[EventDate "2019.10.24"]
[EventType "team-tourn"]
[EventCountry "GEO"]
[SourceTitle "playchess.com"]
[Source "ChessBase"]
[SourceQuality "1"]
[WhiteTeam "Norway"]
[BlackTeam "Latvia"]
[WhiteTeamCountry "NOR"]
[BlackTeamCountry "LAT"]
[TimeControl "40/5400+30:1800+30"]

1. e4 {[%emt 0:00:00]} c6 {[%emt 0:00:00]} 2. d4 {[%emt 0:00:00]} d5 {[%emt 0:00:00]} 3. exd5 {[%emt 0:00:00]} cxd5 {[%emt 0:00:00]} 4. c4 {[%emt 0:00:06]} Nf6 {[%emt 0:00:11]} 5. Nc3 {[%emt 0:00:16]} Nc6 {[%emt 0:00:12]} 6. Nf3 {[%emt 0:00:24]} Be6 {[%emt 0:00:34]} 7. cxd5 {[%emt 0:17:03]} Nxd5 {[%emt 0:00:24]} 8. Bd3 {[%emt 0:07:29]} g6 {[%emt 0:06:35]} 9. O-O {[%emt 0:03:42]} Bg7 {[%emt 0:00:40]} 10. Be3 {[%emt 0:05:11]} O-O {[%emt 0:02:37]} 11. a3 {[%emt 0:20:11]} Rc8 {[%emt 0:17:35]} 12. Rc1 {[%emt 0:09:02]} Na5 {[%emt 0:08:00]} 13. Ne5 {[%emt 0:07:54]} Nxe3 {[%emt 0:01:13]} 14. fxe3 {[%emt 0:02:48]} Nb3 {[%emt 0:00:22]} 15. Nxf7 {[%emt 0:11:45]} Rxf7 {[%emt 0:02:59]} 16. Rxf7 {[%emt 0:00:52]} Bxf7 {[%emt 0:00:21]} 17. Rb1 {[%emt 0:00:30]} Na5 {[%emt 0:10:14]} 18. Qf3 {[%emt 0:02:07]} Nc4 {[%emt 0:01:20]} 19. Rf1 {[%emt 0:02:41]} Be6 {[%emt 0:03:44]} 20. Qe4 {[%emt 0:03:59]} Qd7 {[%emt 0:01:33]} 21. Bxc4 {[%emt 0:00:23]} Bxc4 {[%emt 0:00:41]} 22. Rd1 {[%emt 0:00:24]} e6 {[%emt 0:00:53]} 23. Qh4 {[%emt 0:00:37]} Rf8 {[%emt 0:03:34]} 24. Ne4 {[%emt 0:01:38]} Bd5 {[%emt 0:01:11]} 25. Nc5 {[%emt 0:00:27]} Qf7 {[%emt 0:00:31]} 26. Qe1 {[%emt 0:00:33]} b6 {[%emt 0:00:34]} 27. Nd3 {[%emt 0:00:22]} Qf5 {[%emt 0:02:07]} 28. Nf2 {[%emt 0:00:30]} Qg5 {[%emt 0:00:36]} 29. e4 {[%emt 0:00:22]} Bb3 {[%emt 0:00:37]} 30. Rd3 {[%emt 0:00:19]} Bc4 {[%emt 0:01:16]} 31. Rd2 {[%emt 0:01:05]} Bh6 {[%emt 0:01:17]} 32. Rc2 {[%emt 0:00:28]} b5 {[%emt 0:00:43]} 33. d5 {[%emt 0:00:39]} Qe3 {[%emt 0:01:58]} 0-1